[Event "DFMMLV 2024"]
[Site "Braunfels"]
[Date "2024.06.02"]
[Round "5.7"]
[White "Horvath, Maria"]
[Black "Bazzazi, Elnaz"]
[Result "0-1"]
[ECO "B28"]
[WhiteElo "1929"]
[BlackElo "1840"]
[Annotator "NA"]
[PlyCount "84"]
[EventDate "2024.05.30"]
[EventType "team-tourn"]
[EventCountry "GER"]
[SourceTitle "playchess.com"]
[Source "ChessBase"]
[SourceQuality "1"]
[TimeControl "40/5400+30:1800+30"]

1. d4 {[%emt 0:00:03]} e6 {[%emt 0:00:12]} 2. Nf3 {[%emt 0:00:06]} b5 {[%emt 0:00:18]} 3. e4 {[%emt 0:04:11]} a6 {[%emt 0:00:20]} 4. Bd3 {[%emt 0:01:23]} c5 {[%emt 0:00:49]} 5. c3 {[%emt 0:00:23]} Bb7 {[%emt 0:02:07]} 6. O-O {[%emt 0:00:54]} h6 {[%emt 0:01:29]} 7. Re1 {[%emt 0:05:32]} Nf6 {[%emt 0:03:48]} 8. Nbd2 {[%emt 0:09:00]} Be7 {[%emt 0:08:33]} 9. Nf1 {[%emt 0:04:03]} Qc7 {[%emt 0:06:00]} 10. Ng3 {[%emt 0:06:32]} Nc6 {[%emt 0:06:31]} 11. Bd2 {[%emt 0:07:27]} c4 {[%emt 0:05:13]} 12. Bc2 {[%emt 0:00:35]} a5 {[%emt 0:07:24]} 13. b3 {[%emt 0:04:45]} cxb3 {[%emt 0:09:09]} 14. axb3 {[%emt 0:00:06]} d5 {[%emt 0:00:46]} 15. e5 {[%emt 0:19:07]} Nd7 {[%emt 0:01:08]} 16. Nh5 {[%emt 0:02:39]} g6 {[%emt 0:04:53]} 17. Nf4 {[%emt 0:00:09]} g5 {[%emt 0:01:58]} 18. Nxd5 {[%emt 0:11:11]} exd5 {[%emt 0:00:49]} 19. e6 {[%emt 0:00:04]} fxe6 {[%emt 0:01:05]} 20. Bg6+ {[%emt 0:00:28]} Kd8 {[%emt 0:00:34]} 21. c4 {[%emt 0:06:28]} dxc4 {[%emt 0:04:29]} 22. bxc4 {[%emt 0:00:06]} b4 {[%emt 0:33:55]} 23. Bf7 {[%emt 0:07:12]} g4 {[%emt 0:00:00]} 24. Ne5 {[%emt 0:01:35]} Ncxe5 {[%emt 0:00:00]} 25. Rxe5 {[%emt 0:00:54]} Nxe5 {[%emt 0:00:00]} 26. dxe5 {[%emt 0:00:05]} Kc8 {[%emt 0:00:00]} 27. Qxg4 {[%emt 0:02:02]} Kb8 {[%emt 0:00:00]} 28. Bxe6 {[%emt 0:00:34]} Bc8 {[%emt 0:00:00]} 29. Bf4 {[%emt 0:04:16]} Bg5 {[%emt 0:00:00]} 30. Bg3 {[%emt 0:00:50]} h5 {[%emt 0:00:00]} 31. Qxg5 {[%emt 0:01:24]} Bxe6 {[%emt 0:00:00]} 32. Qf6 {[%emt 0:00:59]} Re8 {[%emt 0:00:00]} 33. f4 {[%emt 0:00:37]} Qd8 {[%emt 0:00:00]} 34. Qxd8+ {[%emt 0:00:47]} Rxd8 {[%emt 0:00:00]} 35. Rf1 {[%emt 0:00:03]} Bxc4 {[%emt 0:00:00]} 36. Rc1 {[%emt 0:00:17]} b3 {[%emt 0:01:37]} 37. f5 {[%emt 0:00:10]} b2 {[%emt 0:02:27]} 38. Rb1 {[%emt 0:00:04]} Rd2 {[%emt 0:00:35]} 39. e6+ {[%emt 0:00:13]} Ka7 {[%emt 0:00:47]} 40. Be5 {[%emt 0:01:35]} Rg8 {[%emt 0:02:19]} 41. g3 {[%emt 0:30:55]} Bd3 {[%emt 0:31:12]} 42. f6 {[%emt 0:00:00]} Bxb1 {[%emt 0:00:00]} 0-1

[Event "DFMMLV 2024"]
[Site "Braunfels"]
[Date "2024.06.02"]
[Round "5.9"]
[White "Sickmann, Lisa"]
[Black "Voicu-Jagodzinsky, Carmen"]
[Result "1-0"]
[ECO "B28"]
[WhiteElo "1980"]
[BlackElo "2228"]
[Annotator "ChessBase"]
[PlyCount "154"]
[EventDate "2024.05.30"]
[EventType "team-tourn"]
[EventCountry "GER"]
[SourceTitle "playchess.com"]
[Source "ChessBase"]
[SourceQuality "1"]
[TimeControl "40/5400+30:1800+30"]

1. e4 {[%emt 0:00:01]} c5 {[%emt 0:00:06]} 2. Nf3 {[%emt 0:00:04]} a6 {[%emt 0:00:05]} 3. c3 {[%emt 0:02:24]} d5 {[%emt 0:00:04]} 4. exd5 {[%emt 0:00:04]} Qxd5 {[%emt 0:00:04]} 5. d4 {[%emt 0:00:07]} e6 {[%emt 0:00:03]} 6. Bd3 {[%emt 0:01:14]} Nf6 {[%emt 0:00:30]} 7. Be3 {[%emt 0:01:13]} Nbd7 {[%emt 0:00:37]} 8. O-O {[%emt 0:00:40]} Be7 {[%emt 0:00:11]} 9. Nbd2 {[%emt 0:03:17]} O-O {[%emt 0:04:23]} 10. Qc2 {[%emt 0:16:34]} cxd4 {[%emt 0:10:30]} 11. cxd4 {[%emt 0:01:26]} b5 {[%emt 0:00:57]} 12. Nb3 {[%emt 0:13:24]} Bb7 {[%emt 0:01:04]} 13. Na5 {[%emt 0:02:31]} Rac8 {[%emt 0:00:59]} 14. Qe2 {[%emt 0:01:48]} Ba8 {[%emt 0:08:29]} 15. Rfd1 {[%emt 0:07:58]} Nb6 {[%emt 0:02:14]} 16. Bg5 {[%emt 0:09:28]} h6 {[%emt 0:00:56]} 17. Bh4 {[%emt 0:05:49]} Rfd8 {[%emt 0:09:07]} 18. Nb3 {[%emt 0:04:57]} Qh5 {[%emt 0:03:49]} 19. Bg3 {[%emt 0:02:48]} Bd6 {[%emt 0:09:48]} 20. Ne5 {[%emt 0:07:04]} Qxe2 {[%emt 0:01:10]} 21. Bxe2 {[%emt 0:00:08]} Na4 {[%emt 0:08:13]} 22. Rab1 {[%emt 0:01:21]} Rc2 {[%emt 0:03:57]} 23. Rd2 {[%emt 0:05:01]} Rxd2 {[%emt 0:02:06]} 24. Nxd2 {[%emt 0:00:07]} Ne4 {[%emt 0:04:20]} 25. Ndf3 {[%emt 0:01:01]} Nxg3 {[%emt 0:01:06]} 26. hxg3 {[%emt 0:00:43]} Be4 {[%emt 0:03:06]} 27. Bd3 {[%emt 0:06:51]} Bd5 {[%emt 0:05:11]} 28. Bc2 {[%emt 0:01:57]} Nb6 {[%emt 0:02:39]} 29. Bb3 {[%emt 0:00:11]} Rc8 {[%emt 0:05:32]} 30. Ra1 {[%emt 0:01:28]} a5 {[%emt 0:00:59]} 31. Bxd5 {[%emt 0:01:48]} Nxd5 {[%emt 0:00:01]} 32. Nd3 {[%emt 0:00:08]} a4 {[%emt 0:01:49]} 33. a3 {[%emt 0:00:47]} Rc2 {[%emt 0:00:49]} 34. Rc1 {[%emt 0:00:16]} Rxc1+ {[%emt 0:02:41]} 35. Nxc1 {[%emt 0:00:09]} Nb6 {[%emt 0:01:22]} 36. Nd3 {[%emt 0:01:15]} f6 {[%emt 0:00:56]} 37. Nd2 {[%emt 0:00:56]} Kf7 {[%emt 0:01:19]} 38. Ne4 {[%emt 0:01:08]} Nc4 {[%emt 0:01:08]} 39. Nc3 {[%emt 0:00:45]} e5 {[%emt 0:02:26]} 40. d5 {[%emt 0:00:52]} Ke7 {[%emt 0:03:06]} 41. f3 {[%emt 0:03:17]} f5 {[%emt 0:06:20]} 42. Kf2 {[%emt 0:01:10]} Bc7 {[%emt 0:03:42]} 43. Nxb5 {[%emt 0:02:53]} Bb6+ {[%emt 0:00:18]} 44. Ke2 {[%emt 0:00:10]} e4 {[%emt 0:01:43]} 45. fxe4 {[%emt 0:01:31]} fxe4 {[%emt 0:00:04]} 46. Nf2 {[%emt 0:00:32]} e3 {[%emt 0:04:22]} 47. Nd1 {[%emt 0:00:51]} Kf6 {[%emt 0:04:43]} 48. Nbc3 {[%emt 0:00:43]} Ke5 {[%emt 0:00:33]} 49. Nxa4 {[%emt 0:00:32]} Bd4 {[%emt 0:00:21]} 50. Kd3 {[%emt 0:02:32]} e2 {[%emt 0:04:00]} 51. Kxe2 {[%emt 0:00:33]} Kxd5 {[%emt 0:00:04]} 52. Nac3+ {[%emt 0:01:56]} Ke5 {[%emt 0:00:15]} 53. Kd3 {[%emt 0:00:22]} Nd6 {[%emt 0:00:26]} 54. b4 {[%emt 0:00:55]} h5 {[%emt 0:00:39]} 55. a4 {[%emt 0:00:27]} g5 {[%emt 0:01:42]} 56. a5 {[%emt 0:00:33]} h4 {[%emt 0:02:47]} 57. gxh4 {[%emt 0:00:18]} gxh4 {[%emt 0:00:01]} 58. b5 {[%emt 0:00:21]} Nb7 {[%emt 0:01:38]} 59. a6 {[%emt 0:03:18]} Nd6 {[%emt 0:00:05]} 60. Ne2 {[%emt 0:01:03]} Ba7 {[%emt 0:00:53]} 61. Ndc3 {[%emt 0:00:35]} Kf5 {[%emt 0:00:42]} 62. Nd4+ {[%emt 0:02:45]} Kg4 {[%emt 0:00:37]} 63. Nce2 {[%emt 0:04:33]} Bb6 {[%emt 0:00:20]} 64. Kc3 {[%emt 0:02:57]} Ba5+ {[%emt 0:00:03]} 65. Kb3 {[%emt 0:00:22]} Bb6 {[%emt 0:00:11]} 66. Kb4 {[%emt 0:00:41]} Nf7 {[%emt 0:03:10]} 67. Nc6 {[%emt 0:00:31]} Nd6 {[%emt 0:00:27]} 68. Ne5+ {[%emt 0:00:21]} Kf5 {[%emt 0:00:24]} 69. Nd7 {[%emt 0:00:24]} Bf2 {[%emt 0:01:34]} 70. b6 {[%emt 0:00:47]} Nc8 {[%emt 0:02:55]} 71. b7 {[%emt 0:00:29]} Na7 {[%emt 0:00:01]} 72. Kc4 {[%emt 0:00:27]} Nc6 {[%emt 0:00:19]} 73. b8=Q {[%emt 0:00:52]} Nxb8 {[%emt 0:00:01]} 74. Nxb8 {[%emt 0:00:08]} Ke4 {[%emt 0:00:16]} 75. Nc6 {[%emt 0:00:58]} Bb6 {[%emt 0:00:34]} 76. Kb5 {[%emt 0:00:17]} Be3 {[%emt 0:00:02]} 77. Ncd4 {[%emt 0:00:18]} Kd5 {[%emt 0:04:56]} 1-0

[Event "DFMMLV 2024"]
[Site "Braunfels"]
[Date "2024.06.02"]
[Round "5.11"]
[White "Braeutigam, Katerina"]
[Black "Trunz, Michelle"]
[Result "1-0"]
[ECO "B40"]
[WhiteElo "1988"]
[BlackElo "2048"]
[Annotator "NA RC"]
[PlyCount "85"]
[EventDate "2024.05.30"]
[EventType "team-tourn"]
[EventCountry "GER"]
[SourceTitle "playchess.com"]
[Source "ChessBase"]
[SourceQuality "1"]
[TimeControl "40/5400+30:1800+30"]

1. e4 {[%emt 0:00:01]} c5 {[%emt 0:00:03]} 2. b3 {[%emt 0:00:04]} Nf6 {[%emt 0:03:27]} 3. e5 {[%emt 0:00:08]} Nd5 {[%emt 0:00:09]} 4. Bb2 {[%emt 0:00:12]} e6 {[%emt 0:00:32]} 5. Nf3 {[%emt 0:00:31]} b6 {[%emt 0:04:31]} 6. g3 {[%emt 0:00:29]} Bb7 {[%emt 0:00:35]} 7. Bg2 {[%emt 0:00:29]} Nc6 {[%emt 0:01:06]} 8. O-O {[%emt 0:01:24]} g6 {[%emt 0:00:25]} 9. c4 {[%emt 0:04:35]} Ndb4 {[%emt 0:02:26]} 10. d4 {[%emt 0:08:36]} Nxd4 {[%emt 0:02:10]} 11. Nxd4 {[%emt 0:01:59]} Bxg2 {[%emt 0:00:05]} 12. Kxg2 {[%emt 0:04:01]} cxd4 {[%emt 0:00:04]} 13. Bxd4 {[%emt 0:01:47]} Bg7 {[%emt 0:02:23]} 14. f4 {[%emt 0:12:05]} O-O {[%emt 0:01:16]} 15. Bc3 {[%emt 0:06:44]} Nc6 {[%emt 0:07:47]} 16. Qd3 {[%emt 0:09:45]} Qc7 {[%emt 0:06:11]} 17. Nd2 {[%emt 0:05:00]} Qb7 {[%emt 0:18:51]} 18. Kg1 {[%emt 0:09:51]} Rfd8 {[%emt 0:14:20]} 19. Ne4 {[%emt 0:02:02]} Ne7 {[%emt 0:01:19]} 20. g4 {[%emt 0:12:47]} Qc6 {[%emt 0:03:03]} 21. Rad1 {[%emt 0:02:07]} Rab8 {[%emt 0:04:09]} 22. Be1 {[%emt 0:08:16]} d5 {[%emt 0:11:01]} 23. exd6 {[%emt 0:01:56]} f5 {[%emt 0:01:52]} 24. Ng5 {[%emt 0:01:13]} Nc8 {[%emt 0:02:06]} 25. Bb4 {[%emt 0:03:21]} Qd7 {[%emt 0:03:43]} 26. Rfe1 {[%emt 0:01:08]} a5 {[%emt 0:02:22]} 27. Ba3 {[%emt 0:00:19]} Re8 {[%emt 0:00:52]} 28. Rxe6 {[%emt 0:01:58]} Rxe6 {[%emt 0:00:16]} 29. Qd5 {[%emt 0:01:29]} b5 {[%emt 0:02:44]} 30. Nxe6 {[%emt 0:00:19]} Nb6 {[%emt 0:00:37]} 31. Nc5+ {[%emt 0:00:32]} Nxd5 {[%emt 0:00:04]} 32. Nxd7 {[%emt 0:00:05]} Rd8 {[%emt 0:01:13]} 33. Rxd5 {[%emt 0:00:07]} Rxd7 {[%emt 0:05:18]} 34. Rxb5 {[%emt 0:00:24]} Bf8 {[%emt 0:00:00]} 35. c5 {[%emt 0:00:53]} Rd8 {[%emt 0:00:00]} 36. Rxa5 {[%emt 0:00:36]} Kf7 {[%emt 0:00:00]} 37. c6 {[%emt 0:01:03]} Bxd6 {[%emt 0:00:00]} 38. Rd5 {[%emt 0:00:13]} Bc7 {[%emt 0:00:00]} 39. Rxd8 {[%emt 0:00:29]} Bxd8 {[%emt 0:00:00]} 40. gxf5 {[%emt 0:00:47]} gxf5 {[%emt 0:00:00]} 41. Bd6 {[%emt 0:30:31]} Bb6+ {[%emt 0:29:13]} 42. Kg2 {[%emt 0:00:28]} Ke6 {[%emt 0:00:10]} 43. c7 {[%emt 0:00:00]} 1-0

[Event "DFMMLV 2024"]
[Site "Braunfels"]
[Date "2024.06.02"]
[Round "5.13"]
[White "Mundt, Alexandra"]
[Black "Trunz, Elena"]
[Result "1/2-1/2"]
[ECO "A04"]
[WhiteElo "1874"]
[BlackElo "2107"]
[Annotator "RC"]
[PlyCount "68"]
[EventDate "2024.05.30"]
[EventType "team-tourn"]
[EventCountry "GER"]
[SourceTitle "playchess.com"]
[Source "ChessBase"]
[SourceQuality "1"]
[TimeControl "40/5400+30:1800+30"]

1. e4 {[%emt 0:00:02]} c5 {[%emt 0:00:08]} 2. Nf3 {[%emt 0:00:04]} d6 {[%emt 0:00:06]} 3. g3 {[%emt 0:00:05]} Nc6 {[%emt 0:02:40]} 4. Bg2 {[%emt 0:00:17]} g6 {[%emt 0:00:28]} 5. d3 {[%emt 0:00:14]} Bg7 {[%emt 0:00:23]} 6. O-O {[%emt 0:00:12]} Rb8 {[%emt 0:02:49]} 7. a4 {[%emt 0:00:55]} a6 {[%emt 0:08:09]} 8. Re1 {[%emt 0:00:26]} e5 {[%emt 0:03:55]} 9. c3 {[%emt 0:00:20]} Nge7 {[%emt 0:00:39]} 10. Bg5 {[%emt 0:03:31]} O-O {[%emt 0:04:13]} 11. Nbd2 {[%emt 0:09:16]} f5 {[%emt 0:05:05]} 12. b4 {[%emt 0:03:51]} cxb4 {[%emt 0:12:12]} 13. cxb4 {[%emt 0:00:23]} h6 {[%emt 0:01:10]} 14. Bxe7 {[%emt 0:07:22]} Nxe7 {[%emt 0:01:14]} 15. Qb3+ {[%emt 0:01:51]} Kh8 {[%emt 0:00:39]} 16. Rac1 {[%emt 0:00:51]} Bd7 {[%emt 0:14:50]} 17. Nc4 {[%emt 0:05:09]} Be6 {[%emt 0:02:46]} 18. b5 {[%emt 0:00:16]} axb5 {[%emt 0:00:48]} 19. axb5 {[%emt 0:00:09]} f4 {[%emt 0:04:35]} 20. Qb4 {[%emt 0:01:44]} Nc8 {[%emt 0:04:02]} 21. b6 {[%emt 0:04:59]} fxg3 {[%emt 0:03:49]} 22. hxg3 {[%emt 0:00:33]} Rf7 {[%emt 0:11:24]} 23. Rc2 {[%emt 0:07:07]} Rd7 {[%emt 0:03:55]} 24. Rb1 {[%emt 0:05:49]} Ne7 {[%emt 0:01:52]} 25. Na5 {[%emt 0:04:30]} d5 {[%emt 0:00:30]} 26. Rbc1 {[%emt 0:20:28]} dxe4 {[%emt 0:02:54]} 27. dxe4 {[%emt 0:00:01]} Rc8 {[%emt 0:00:45]} 28. Rxc8 {[%emt 0:01:09]} Nxc8 {[%emt 0:00:04]} 29. Nh4 {[%emt 0:00:57]} Kh7 {[%emt 0:02:07]} 30. Rc7 {[%emt 0:01:08]} Rxc7 {[%emt 0:01:28]} 31. bxc7 {[%emt 0:00:05]} Qxc7 {[%emt 0:00:29]} 32. Nxb7 {[%emt 0:00:06]} Nb6 {[%emt 0:02:08]} 33. Nc5 {[%emt 0:00:54]} Bg4 {[%emt 0:00:19]} 34. Nd3 {[%emt 0:02:32]} Bf6 {[%emt 0:01:12]} 1/2-1/2

[Event "DFMMLV 2024"]
[Site "Braunfels"]
[Date "2024.06.02"]
[Round "5.14"]
[White "Freitag, Julia"]
[Black "Rosmait, Emily"]
[Result "1/2-1/2"]
[ECO "A45"]
[WhiteElo "2084"]
[BlackElo "1896"]
[Annotator "ChessBase"]
[PlyCount "84"]
[EventDate "2024.05.30"]
[EventType "team-tourn"]
[EventCountry "GER"]
[SourceTitle "playchess.com"]
[Source "ChessBase"]
[SourceQuality "1"]
[TimeControl "40/5400+30:1800+30"]

1. d4 {[%emt 0:00:07]} Nf6 {[%emt 0:00:06]} 2. e3 {[%emt 0:00:05]} g6 {[%emt 0:00:12]} 3. f4 {[%emt 0:00:10]} Bg7 {[%emt 0:00:05]} 4. Nf3 {[%emt 0:00:04]} O-O {[%emt 0:00:16]} 5. c3 {[%emt 0:00:06]} d6 {[%emt 0:00:13]} 6. Bc4 {[%emt 0:00:10]} c5 {[%emt 0:00:40]} 7. O-O {[%emt 0:00:23]} Qc7 {[%emt 0:03:42]} 8. Qe2 {[%emt 0:05:18]} Nc6 {[%emt 0:06:07]} 9. Nbd2 {[%emt 0:11:21]} cxd4 {[%emt 0:17:58]} 10. exd4 {[%emt 0:12:39]} Bf5 {[%emt 0:01:13]} 11. Nh4 {[%emt 0:01:19]} Bg4 {[%emt 0:00:27]} 12. Qf2 {[%emt 0:01:56]} e5 {[%emt 0:09:32]} 13. fxe5 {[%emt 0:03:43]} dxe5 {[%emt 0:00:30]} 14. Qg3 {[%emt 0:20:04]} Qd7 {[%emt 0:08:49]} 15. d5 {[%emt 0:03:20]} Na5 {[%emt 0:05:56]} 16. Qxe5 {[%emt 0:09:09]} Rfe8 {[%emt 0:05:55]} 17. Qg3 {[%emt 0:08:06]} Nh5 {[%emt 0:08:53]} 18. Qf2 {[%emt 0:10:15]} Nxc4 {[%emt 0:01:47]} 19. Nxc4 {[%emt 0:00:03]} Be2 {[%emt 0:01:11]} 20. Ne3 {[%emt 0:03:32]} Bxf1 {[%emt 0:00:52]} 21. Qxf1 {[%emt 0:00:09]} Nf6 {[%emt 0:02:25]} 22. c4 {[%emt 0:01:21]} b5 {[%emt 0:03:45]} 23. cxb5 {[%emt 0:01:52]} Nxd5 {[%emt 0:01:46]} 24. Nxd5 {[%emt 0:02:23]} Qxd5 {[%emt 0:00:13]} 25. Nf3 {[%emt 0:00:06]} Rac8 {[%emt 0:03:06]} 26. a4 {[%emt 0:01:35]} Rc2 {[%emt 0:01:16]} 27. a5 {[%emt 0:01:30]} Ree2 {[%emt 0:09:41]} 28. b6 {[%emt 0:01:17]} Qc5+ {[%emt 0:04:18]} 29. Kh1 {[%emt 0:00:06]} Rf2 {[%emt 0:00:25]} 30. Qd1 {[%emt 0:00:59]} Rxg2 {[%emt 0:02:29]} 31. Qd8+ {[%emt 0:00:01]} Bf8 {[%emt 0:00:22]} 32. Bd2 {[%emt 0:01:05]} Qf2 {[%emt 0:01:11]} 33. b7 {[%emt 0:00:50]} Qxf3 {[%emt 0:01:02]} 34. Qxf8+ {[%emt 0:01:01]} Kxf8 {[%emt 0:00:01]} 35. b8=Q+ {[%emt 0:00:02]} Ke7 {[%emt 0:00:58]} 36. Bb4+ {[%emt 0:01:26]} Kd7 {[%emt 0:00:33]} 37. Qd6+ {[%emt 0:00:01]} Kc8 {[%emt 0:00:17]} 38. Qf8+ {[%emt 0:00:14]} Kc7 {[%emt 0:00:43]} 39. Qd6+ {[%emt 0:00:01]} Kc8 {[%emt 0:00:19]} 40. Qf8+ {[%emt 0:00:08]} Kc7 {[%emt 0:00:44]} 41. Qd6+ {[%emt 0:31:45]} Kc8 {[%emt 0:02:24]} 42. Qf8+ {[%emt 0:00:00]} Kc7 {[%emt 0:14:07]} 1/2-1/2

[Event "DFMMLV 2024"]
[Site "Braunfels"]
[Date "2024.06.02"]
[Round "5.16"]
[White "Schirmbeck, Lilian"]
[Black "Leib, Britta"]
[Result "1/2-1/2"]
[ECO "D60"]
[WhiteElo "1791"]
[BlackElo "1920"]
[Annotator "NA RC"]
[PlyCount "45"]
[EventDate "2024.05.30"]
[EventType "team-tourn"]
[EventCountry "GER"]
[SourceTitle "playchess.com"]
[Source "ChessBase"]
[SourceQuality "1"]
[TimeControl "40/5400+30:1800+30"]

1. d4 {[%emt 0:00:02]} e6 {[%emt 0:00:32]} 2. c4 {[%emt 0:01:29]} d5 {[%emt 0:00:20]} 3. Nc3 {[%emt 0:00:28]} Nf6 {[%emt 0:02:31]} 4. Bg5 {[%emt 0:01:23]} Be7 {[%emt 0:02:39]} 5. Nf3 {[%emt 0:01:22]} O-O {[%emt 0:01:35]} 6. e3 {[%emt 0:01:35]} Nbd7 {[%emt 0:02:44]} 7. Be2 {[%emt 0:08:58]} dxc4 {[%emt 0:07:50]} 8. Bxc4 {[%emt 0:01:41]} a6 {[%emt 0:00:16]} 9. a4 {[%emt 0:01:01]} b6 {[%emt 0:12:04]} 10. O-O {[%emt 0:04:19]} Bb7 {[%emt 0:01:39]} 11. Qe2 {[%emt 0:02:41]} Nd5 {[%emt 0:04:59]} 12. Bxe7 {[%emt 0:05:43]} Qxe7 {[%emt 0:01:07]} 13. e4 {[%emt 0:15:19]} Nb4 {[%emt 0:10:20]} 14. Rfd1 {[%emt 0:06:46]} c5 {[%emt 0:07:42]} 15. Rac1 {[%emt 0:03:15]} cxd4 {[%emt 0:02:19]} 16. Nxd4 {[%emt 0:00:38]} Ne5 {[%emt 0:00:25]} 17. Bb3 {[%emt 0:12:27]} Rfd8 {[%emt 0:02:41]} 18. Bc2 {[%emt 0:03:16]} Nxc2 {[%emt 0:03:16]} 19. Nxc2 {[%emt 0:00:11]} Qc5 {[%emt 0:00:33]} 20. Ne3 {[%emt 0:03:44]} Qb4 {[%emt 0:02:26]} 21. f3 {[%emt 0:03:03]} h6 {[%emt 0:02:11]} 22. Kh1 {[%emt 0:02:59]} Rac8 {[%emt 0:01:22]} 23. h3 {[%emt 0:03:48]} 1/2-1/2

[Event "DFMMLV 2024"]
[Site "Braunfels"]
[Date "2024.06.02"]
[Round "5.17"]
[White "Rieseler, Caroline"]
[Black "Jelica, Mara"]
[Result "1/2-1/2"]
[ECO "B81"]
[WhiteElo "2075"]
[BlackElo "2067"]
[Annotator "RC"]
[PlyCount "123"]
[EventDate "2024.05.30"]
[EventType "team-tourn"]
[EventCountry "GER"]
[SourceTitle "playchess.com"]
[Source "ChessBase"]
[SourceQuality "1"]
[TimeControl "40/5400+30:1800+30"]

1. e4 {[%emt 0:00:04]} c5 {[%emt 0:00:13]} 2. Nf3 {[%emt 0:00:10]} d6 {[%emt 0:00:06]} 3. d4 {[%emt 0:00:06]} cxd4 {[%emt 0:00:07]} 4. Nxd4 {[%emt 0:00:05]} Nf6 {[%emt 0:00:05]} 5. Nc3 {[%emt 0:00:09]} a6 {[%emt 0:00:07]} 6. h3 {[%emt 0:00:16]} e6 {[%emt 0:00:15]} 7. g4 {[%emt 0:00:49]} Be7 {[%emt 0:00:16]} 8. g5 {[%emt 0:02:58]} Nfd7 {[%emt 0:00:43]} 9. Be3 {[%emt 0:00:29]} Nc5 {[%emt 0:05:57]} 10. Qd2 {[%emt 0:05:12]} b5 {[%emt 0:01:31]} 11. a3 {[%emt 0:05:33]} Bb7 {[%emt 0:04:42]} 12. Bg2 {[%emt 0:00:21]} Nc6 {[%emt 0:02:24]} 13. f4 {[%emt 0:16:30]} Qc7 {[%emt 0:05:39]} 14. O-O {[%emt 0:02:56]} Nxd4 {[%emt 0:06:26]} 15. Bxd4 {[%emt 0:00:38]} e5 {[%emt 0:02:01]} 16. Be3 {[%emt 0:00:49]} exf4 {[%emt 0:04:04]} 17. Bxf4 {[%emt 0:00:10]} Ne6 {[%emt 0:00:59]} 18. Be3 {[%emt 0:05:18]} O-O {[%emt 0:02:37]} 19. Nd5 {[%emt 0:08:30]} Bxd5 {[%emt 0:00:39]} 20. exd5 {[%emt 0:01:42]} Nc5 {[%emt 0:00:50]} 21. Rac1 {[%emt 0:01:10]} Nd7 {[%emt 0:00:43]} 22. Bd4 {[%emt 0:06:04]} Qd8 {[%emt 0:02:19]} 23. h4 {[%emt 0:00:44]} f6 {[%emt 0:01:46]} 24. Bh3 {[%emt 0:11:11]} Kh8 {[%emt 0:04:47]} 25. Rce1 {[%emt 0:10:15]} Ne5 {[%emt 0:03:19]} 26. b3 {[%emt 0:04:44]} fxg5 {[%emt 0:03:03]} 27. Rxf8+ {[%emt 0:02:47]} Qxf8 {[%emt 0:00:30]} 28. Bxe5 {[%emt 0:00:50]} dxe5 {[%emt 0:01:08]} 29. Rf1 {[%emt 0:02:26]} Qd8 {[%emt 0:02:05]} 30. h5 {[%emt 0:00:08]} Qd6 {[%emt 0:08:03]} 31. Be6 {[%emt 0:01:37]} e4 {[%emt 0:08:27]} 32. Kg2 {[%emt 0:04:53]} Rd8 {[%emt 0:10:08]} 33. Qc3 {[%emt 0:00:24]} Rf8 {[%emt 0:03:15]} 34. Rxf8+ {[%emt 0:03:27]} Bxf8 {[%emt 0:00:03]} 35. Qg3 {[%emt 0:03:08]} Qxg3+ {[%emt 0:05:22]} 36. Kxg3 {[%emt 0:00:05]} Bxa3 {[%emt 0:00:31]} 37. Kg4 {[%emt 0:00:38]} h6 {[%emt 0:00:37]} 38. Bc8 {[%emt 0:00:12]} e3 {[%emt 0:03:52]} 39. Kf3 {[%emt 0:00:09]} Bc5 {[%emt 0:00:30]} 40. d6 {[%emt 0:01:38]} Bxd6 {[%emt 0:00:04]} 41. Kxe3 {[%emt 0:30:07]} a5 {[%emt 0:31:56]} 42. Bd7 {[%emt 0:00:08]} g6 {[%emt 0:00:59]} 43. Bxb5 {[%emt 0:00:00]} gxh5 {[%emt 0:00:00]} 44. Be8 {[%emt 0:00:00]} h4 {[%emt 0:00:00]} 45. Kf3 {[%emt 0:00:00]} h3 {[%emt 0:00:00]} 46. Kg4 {[%emt 0:00:00]} h2 {[%emt 0:00:00]} 47. Bc6 {[%emt 0:00:00]} Kg7 {[%emt 0:00:00]} 48. Kf5 {[%emt 0:00:00]} Be7 {[%emt 0:00:00]} 49. Kg4 {[%emt 0:00:00]} Kf6 {[%emt 0:00:00]} 50. Kh3 {[%emt 0:00:00]} Bd6 {[%emt 0:00:00]} 51. Kg4 {[%emt 0:00:00]} Ke5 {[%emt 0:00:00]} 52. c3 {[%emt 0:00:09]} Kf6 {[%emt 0:00:00]} 53. Kh3 {[%emt 0:01:19]} h5 {[%emt 0:00:00]} 54. Kg2 {[%emt 0:00:07]} g4 {[%emt 0:00:00]} 55. b4 {[%emt 0:01:02]} axb4 {[%emt 0:00:00]} 56. cxb4 {[%emt 0:00:05]} h4 {[%emt 0:00:00]} 57. Bd7 {[%emt 0:01:32]} g3 {[%emt 0:00:00]} 58. b5 {[%emt 0:00:25]} Bc5 {[%emt 0:00:00]} 59. Bc8 {[%emt 0:00:16]} Ke5 {[%emt 0:00:00]} 60. Bd7 {[%emt 0:00:17]} Kf4 {[%emt 0:00:00]} 61. Bc8 {[%emt 0:00:11]} Ke3 {[%emt 0:00:00]} 62. Bd7 {[%emt 0:00:11]} 1/2-1/2

[Event "DFMMLV 2024"]
[Site "Braunfels"]
[Date "2024.06.02"]
[Round "5.19"]
[White "Reinecke, Katharina"]
[Black "Novikova, Margarita"]
[Result "1/2-1/2"]
[ECO "E06"]
[WhiteElo "1949"]
[BlackElo "1999"]
[Annotator "NA RC"]
[PlyCount "26"]
[EventDate "2024.05.30"]
[EventType "team-tourn"]
[EventCountry "GER"]
[SourceTitle "playchess.com"]
[Source "ChessBase"]
[SourceQuality "1"]
[TimeControl "40/5400+30:1800+30"]

1. d4 {[%emt 0:00:03]} Nf6 {[%emt 0:00:06]} 2. Nf3 {[%emt 0:00:07]} e6 {[%emt 0:00:05]} 3. g3 {[%emt 0:00:08]} d5 {[%emt 0:00:08]} 4. Bg2 {[%emt 0:00:05]} c6 {[%emt 0:00:34]} 5. O-O {[%emt 0:00:12]} Be7 {[%emt 0:00:51]} 6. b3 {[%emt 0:07:31]} O-O {[%emt 0:05:03]} 7. c4 {[%emt 0:01:25]} b6 {[%emt 0:03:21]} 8. Nbd2 {[%emt 0:03:45]} Bb7 {[%emt 0:00:39]} 9. Bb2 {[%emt 0:00:25]} dxc4 {[%emt 0:11:25]} 10. Nxc4 {[%emt 0:01:31]} c5 {[%emt 0:00:54]} 11. e3 {[%emt 0:03:48]} cxd4 {[%emt 0:10:26]} 12. Qxd4 {[%emt 0:07:56]} Qxd4 {[%emt 0:00:30]} 13. Nxd4 {[%emt 0:00:42]} Bxg2 {[%emt 0:00:31]} 1/2-1/2

[Event "DFMMLV 2024"]
[Site "Braunfels"]
[Date "2024.06.02"]
[Round "5.20"]
[White "Timofeeva, Galina"]
[Black "Frank, Michelle Viviane"]
[Result "1/2-1/2"]
[ECO "C00"]
[WhiteElo "1981"]
[BlackElo "1899"]
[Annotator "NA RC"]
[PlyCount "29"]
[EventDate "2024.05.30"]
[EventType "team-tourn"]
[EventCountry "GER"]
[SourceTitle "playchess.com"]
[Source "ChessBase"]
[SourceQuality "1"]
[TimeControl "40/5400+30:1800+30"]

1. e4 {[%emt 0:00:02]} e6 {[%emt 0:00:09]} 2. d3 {[%emt 0:00:05]} d5 {[%emt 0:00:11]} 3. Nd2 {[%emt 0:00:06]} Nf6 {[%emt 0:00:07]} 4. Ngf3 {[%emt 0:00:43]} Be7 {[%emt 0:00:09]} 5. g3 {[%emt 0:00:27]} c5 {[%emt 0:00:06]} 6. Bg2 {[%emt 0:00:11]} Nc6 {[%emt 0:00:06]} 7. O-O {[%emt 0:00:13]} h6 {[%emt 0:00:07]} 8. Re1 {[%emt 0:00:42]} Qc7 {[%emt 0:00:12]} 9. c3 {[%emt 0:00:40]} b5 {[%emt 0:00:09]} 10. e5 {[%emt 0:19:47]} Nd7 {[%emt 0:00:07]} 11. d4 {[%emt 0:04:45]} cxd4 {[%emt 0:01:25]} 12. cxd4 {[%emt 0:07:03]} Nb4 {[%emt 0:00:08]} 13. Re3 {[%emt 0:00:08]} Qc2 {[%emt 1:34:04]} 14. Qf1 {[%emt 1:02:38]} Qh7 {[%emt 0:00:30]} 15. Ne1 {[%emt 0:00:30]} 1/2-1/2